fUST/lending_fUST_20250924
["ID","MTS","AMOUNT","RATE_DAILY","PERIOD"]
[387338262,1758696647768,-664.57525086,0.00019929,2]
[387338264,1758696647777,-204.3,0.00020066,2]
[387338266,1758696647786,-480.0,0.00020161,2]
[387338268,1758696647795,-480.0,0.00020161,2]
[387338269,1758696647805,-480.0,0.00020162,2]
[387338271,1758696647814,-480.0,0.00020162,2]
[387338273,1758696647823,-480.0,0.00020162,2]
[387338275,1758696647832,-480.0,0.00020163,2]
[387338277,1758696647841,-480.0,0.00020163,2]
[387338278,1758696647850,-2742.89,0.00020163,2]
[387338280,1758696647859,-480.0,0.00020163,2]
[387338282,1758696647869,-537.66,0.00020163,2]
[387338284,1758696647878,-842.14,0.00020163,2]
[387338285,1758696647887,-540.60995247,0.00020163,2]
[387338287,1758696647896,-480.0,0.00020163,2]
[387338289,1758696647905,-480.0,0.00020163,2]
[387338291,1758696647914,-480.0,0.00020163,2]
[387338292,1758696647923,-480.0,0.00020163,2]
[387338294,1758696647932,-494.62463786,0.00020163,2]
[387338296,1758696647941,-480.0,0.00020163,2]
[387338298,1758696647950,-1655.49,0.00020163,2]
[387338300,1758696647959,-480.0,0.00020163,2]
[387338301,1758696647968,-480.0,0.00020163,2]
[387338303,1758696647978,-763.47,0.00020163,2]
[387338305,1758696647987,-500.0,0.00020164,2]
[387338307,1758696647997,-206.612396,0.00020164,2]
[387338308,1758696648006,-151.0,0.00020164,2]
[387338310,1758696648015,-151.0,0.00020164,2]
[387338312,1758696648025,-480.0,0.00020164,2]
[387338314,1758696648034,-480.0,0.00020164,2]
[387338316,1758696648045,-480.0,0.00020164,2]
[387338317,1758696648054,-480.0,0.00020164,2]
[387338319,1758696648064,-1257.41,0.00020164,2]
[387338321,1758696648074,-480.0,0.00020164,2]
[387338323,1758696648084,-480.0,0.00020164,2]
[387338324,1758696648093,-509.9,0.00020164,2]
[387338326,1758696648102,-480.0,0.00020164,2]
[387338328,1758696648111,-480.0,0.00020164,2]
[387338330,1758696648121,-542.57,0.00020164,2]
[387338331,1758696648130,-480.0,0.00020164,2]
[387338333,1758696648139,-480.0,0.00020164,2]
[387338335,1758696648149,-480.0,0.00020164,2]
[387338337,1758696648157,-445.03555212,0.00020164,2]
[387338338,1758696648166,-480.0,0.00020164,2]
[387338340,1758696648175,-480.0,0.00020164,2]
[387338342,1758696648184,-480.0,0.00020164,2]
[387338344,1758696648194,-480.0,0.00020164,2]
[387338345,1758696648204,-480.0,0.00020164,2]
[387338347,1758696648216,-480.0,0.00020164,2]
[387338349,1758696648225,-1876.45,0.00020164,2]
[387338351,1758696648234,-480.0,0.00020164,2]
[387338352,1758696648244,-480.0,0.00020164,2]
[387338354,1758696648255,-480.0,0.00020164,2]
[387338356,1758696648264,-480.0,0.00020164,2]
[387338358,1758696648273,-480.0,0.00020164,2]
[387338359,1758696648282,-480.0,0.00020164,2]
[387338361,1758696648293,-151.0,0.00020164,2]
[387338363,1758696648303,-480.0,0.00020164,2]
[387338365,1758696648313,-912.57,0.00020164,2]
[387338366,1758696648322,-505.27,0.00020164,2]
[387338368,1758696648331,-541.56,0.00020164,2]
[387338370,1758696648340,-480.0,0.00020164,2]
[387338372,1758696648350,-500.0,0.00020164,2]
[387338373,1758696648359,-1061.15,0.00020164,2]
[387338375,1758696648369,-480.0,0.00020164,2]
[387338377,1758696648378,-480.0,0.00020164,2]
[387338378,1758696648387,-480.0,0.00020164,2]
[387338380,1758696648396,-480.0,0.00020164,2]
[387338382,1758696648405,-500.0,0.00020165,2]
[387338384,1758696648414,-480.0,0.00020165,2]
[387338385,1758696648423,-480.0,0.00020165,2]
[387338387,1758696648433,-480.0,0.00020165,2]
[387338389,1758696648443,-480.0,0.00020165,2]
[387338391,1758696648452,-480.0,0.00020165,2]
[387338392,1758696648461,-150.39976775,0.00020165,2]
[387338394,1758696648470,-480.0,0.00020165,2]
[387338396,1758696648480,-480.0,0.00020165,2]
[387338398,1758696648489,-480.0,0.00020165,2]
[387338400,1758696648498,-480.0,0.00020165,2]
[387338401,1758696648507,-480.0,0.00020165,2]
[387338403,1758696648516,-480.0,0.00020165,2]
[387338405,1758696648526,-480.0,0.00020165,2]
[387338406,1758696648535,-480.0,0.00020165,2]
[387338408,1758696648545,-585.93,0.00020165,2]
[387338410,1758696648554,-480.0,0.00020165,2]
[387338412,1758696648563,-480.0,0.00020165,2]
[387338413,1758696648572,-151.649246,0.00020165,2]
[387338415,1758696648581,-480.0,0.00020165,2]
[387338417,1758696648590,-480.0,0.00020165,2]
[387338419,1758696648599,-480.0,0.00020165,2]
[387338420,1758696648608,-480.0,0.00020165,2]
[387338422,1758696648618,-480.0,0.00020165,2]
[387338424,1758696648627,-522.73,0.00020165,2]
[387338426,1758696648637,-480.0,0.00020165,2]
[387338427,1758696648647,-480.0,0.00020165,2]
[387338429,1758696648656,-480.0,0.00020165,2]
[387338431,1758696648666,-480.0,0.00020165,2]
[387338433,1758696648675,-3074.73,0.00020165,2]
[387338434,1758696648684,-480.0,0.00020165,2]
[387338436,1758696648693,-480.0,0.00020165,2]
[387338438,1758696648703,-601.73,0.00020165,2]
[387338440,1758696648712,-480.0,0.00020165,2]
[387338441,1758696648722,-480.0,0.00020165,2]
[387338443,1758696648731,-334.27914084,0.00020166,2]
[387338445,1758696648741,-578.82701108,0.00020166,2]
[387338447,1758696648751,-151.0,0.00020166,2]
[387338448,1758696648760,-153.054955,0.00020166,2]
[387338450,1758696648770,-480.0,0.00020166,2]
[387338452,1758696648779,-153.07359,0.00020166,2]
[387338454,1758696648788,-480.0,0.00020166,2]
[387338455,1758696648797,-480.0,0.00020166,2]
[387338457,1758696648806,-480.0,0.00020166,2]
[387338459,1758696648816,-480.0,0.00020166,2]
[387338461,1758696648825,-480.0,0.00020166,2]
[387338462,1758696648834,-682.32,0.00020166,2]
[387338464,1758696648844,-1454.35,0.00020166,2]
[387338466,1758696648853,-480.0,0.00020166,2]
[387338468,1758696648862,-480.0,0.00020166,2]
[387338470,1758696648872,-480.0,0.00020167,2]
[387338472,1758696648881,-1000.0,0.00020221,2]
[387338474,1758696648891,-1000.0,0.00020221,2]
[387338476,1758696648901,-1006.91355474,0.00020221,2]
[387338485,1758696648972,-271.14209458,0.00020221,2]
[387338487,1758696648981,-1133.79353919,0.00020221,2]
[387338489,1758696648990,-1000.0,0.00020221,2]
[387338491,1758696649000,-664.57525086,0.00020271,2]
[387338493,1758696649009,-616.59040504,0.00020281,2]
[387338495,1758696649018,-2463.89525852,0.00020281,2]
[387338497,1758696649029,-1030.08,0.00020337,2]
[387338499,1758696649038,-1000.0,0.00020421,2]
[387338501,1758696649047,-1000.0,0.00020421,2]
[387338502,1758696649057,-1000.0,0.00020421,2]
[387338503,1758696649066,-1000.0,0.00020421,2]
[387338504,1758696649075,-1000.0,0.00020421,2]
[387338505,1758696649084,-1000.0,0.00020421,2]
[387338506,1758696649093,-462.21015604,0.00020435,2]
[387338507,1758696649102,-480.0,0.00020435,2]
[387338508,1758696649111,-480.0,0.00020436,2]
[387338509,1758696649120,-480.0,0.00020436,2]
[387338510,1758696649130,-480.0,0.00020436,2]
[387338511,1758696649139,-225.54824361,0.00020437,2]
[387338512,1758696649148,-2742.89,0.00020437,2]
[387338513,1758696649157,-480.0,0.00020437,2]
[387338514,1758696649166,-537.66,0.00020437,2]
[387338515,1758696649175,-842.14,0.00020437,2]
[387338516,1758696649184,-480.0,0.00020437,2]
[387338517,1758696649194,-480.0,0.00020437,2]
[387338518,1758696649208,-480.0,0.00020437,2]
[387338519,1758696649218,-480.0,0.00020437,2]
[387338520,1758696649227,-480.0,0.00020437,2]
[387338521,1758696649236,-1655.49,0.00020437,2]
[387338522,1758696649246,-480.0,0.00020437,2]
[387338523,1758696649255,-480.0,0.00020437,2]
[387338524,1758696649264,-447.35966562,0.00020438,2]
[387338525,1758696649273,-615.64610271,0.00020438,2]
[387338526,1758696649282,-480.0,0.00020438,2]
[387338527,1758696649294,-480.0,0.00020438,2]
[387338528,1758696649303,-1257.41,0.00020438,2]
[387338529,1758696649313,-480.0,0.00020438,2]
[387338530,1758696649321,-480.0,0.00020438,2]
[387338531,1758696649331,-509.9,0.00020438,2]
[387338532,1758696649340,-480.0,0.00020438,2]
[387338533,1758696649349,-480.0,0.00020438,2]
[387338534,1758696649358,-542.57,0.00020438,2]
[387338535,1758696649367,-480.0,0.00020438,2]
[387338536,1758696649377,-169.8211164,0.00020438,2]
[387338537,1758696649386,-480.0,0.00020438,2]
[387338538,1758696649395,-480.0,0.00020438,2]
[387338539,1758696649404,-480.0,0.00020438,2]
[387338540,1758696649414,-480.0,0.00020438,2]
[387338541,1758696649423,-1876.45,0.00020438,2]
[387338542,1758696649432,-480.0,0.00020438,2]
[387338543,1758696649441,-500.18,0.00020438,2]
[387338544,1758696649451,-480.0,0.00020438,2]
[387338545,1758696649460,-493.56153127,0.00020438,2]
[387338546,1758696649469,-480.0,0.00020438,2]
[387338547,1758696649479,-912.57,0.00020438,2]
[387338548,1758696649488,-505.27,0.00020438,2]
[387338549,1758696649497,-151.0,0.00020438,2]
[387338550,1758696649506,-151.0,0.00020438,2]
[387338551,1758696649515,-480.0,0.00020438,2]
[387338552,1758696649524,-1061.15,0.00020438,2]
[387338553,1758696649534,-480.0,0.00020438,2]
[387338554,1758696649543,-480.0,0.00020438,2]
[387338555,1758696649552,-480.0,0.00020438,2]
[387338556,1758696649561,-480.0,0.00020438,2]
[387338557,1758696649571,-500.0,0.00020439,2]
[387338558,1758696649580,-490.69273148,0.00020439,2]
[387338559,1758696649590,-480.0,0.00020439,2]
[387338560,1758696649599,-480.0,0.00020439,2]
[387338561,1758696649608,-480.0,0.00020439,2]
[387338562,1758696649617,-480.0,0.00020439,2]
[387338563,1758696649627,-480.0,0.00020439,2]
[387338564,1758696649636,-480.0,0.00020439,2]
[387338566,1758696649645,-480.0,0.00020439,2]
[387338567,1758696649655,-585.93,0.00020439,2]
[387338568,1758696649664,-480.0,0.00020439,2]
[387338570,1758696649673,-480.0,0.00020439,2]
[387338571,1758696649682,-480.0,0.00020439,2]
[387338573,1758696649691,-480.0,0.00020439,2]
[387338574,1758696649700,-480.0,0.00020439,2]
[387338576,1758696649709,-480.0,0.00020439,2]
[387338577,1758696649718,-522.73,0.00020439,2]
[387338578,1758696649727,-480.0,0.00020439,2]
[387338580,1758696649736,-480.0,0.00020439,2]
[387338581,1758696649745,-480.0,0.00020439,2]
[387338583,1758696649755,-581.45389116,0.00020439,2]
[387338585,1758696649766,-3074.73,0.00020439,2]
[387338587,1758696649775,-517.9255138,0.00020439,2]
[387338589,1758696649784,-480.0,0.00020439,2]
[387338591,1758696649793,-601.73,0.00020439,2]
[387338593,1758696649803,-480.0,0.00020439,2]
[387338595,1758696649811,-480.0,0.0002044,2]
[387338597,1758696649821,-480.0,0.0002044,2]
[387338599,1758696649831,-233.09227744,0.0002044,2]
[387338601,1758696649840,-480.0,0.0002044,2]
[387338603,1758696649850,-480.0,0.0002044,2]
[387338605,1758696649859,-682.32,0.0002044,2]
[387338607,1758696649868,-1454.35,0.0002044,2]
[387338609,1758696649877,-480.0,0.0002044,2]
[387338611,1758696649887,-151.0,0.0002044,2]
[387338613,1758696649896,-480.0,0.0002044,2]
[387338615,1758696649906,-374.7833861,0.00020441,2]
[387338617,1758696649915,-500.0,0.00020468,2]
[387338619,1758696649924,-1500.0,0.00020468,2]
[387338621,1758696649933,-1500.0,0.00020468,2]
[387338623,1758696649943,-1500.0,0.00020468,2]
[387338625,1758696649952,-183.09612358,0.00020468,2]
[387338627,1758696649961,-1500.0,0.00020468,2]
[387338629,1758696649971,-154.64021232,0.00020479,2]
[387338631,1758696649980,-617.94228842,0.00020479,2]
[387338633,1758696649992,-664.57525086,0.00020614,2]
[387338635,1758696650001,-1608.24,0.00020703,3]
[387338637,1758696650010,-804.12,0.00020703,3]
[387338639,1758696650019,-402.06,0.00020703,3]
[387338641,1758696650028,-490.42354924,0.00020709,2]
[387338643,1758696650037,-484.4567272,0.0002071,2]
[387338645,1758696650047,-480.0,0.0002071,2]
[387338647,1758696650056,-480.0,0.0002071,2]
[387338649,1758696650066,-2742.89,0.00020711,2]
[387338651,1758696650075,-480.0,0.00020711,2]
[387338654,1758696650084,-537.66,0.00020711,2]
[387338655,1758696650093,-842.14,0.00020711,2]
[387338657,1758696650102,-480.0,0.00020711,2]
[387338659,1758696650111,-480.0,0.00020711,2]
[387338661,1758696650120,-480.0,0.00020711,2]
[387338663,1758696650129,-480.0,0.00020711,2]
[387338665,1758696650139,-480.0,0.00020711,2]
[387338668,1758696650148,-1655.49,0.00020711,2]
[387338669,1758696650158,-480.0,0.00020711,2]
[387338672,1758696650167,-480.0,0.00020711,2]
[387338674,1758696650176,-1257.41,0.00020712,2]
[387338676,1758696650186,-480.0,0.00020712,2]
[387338677,1758696650195,-480.0,0.00020712,2]
[387338685,1758696650263,-509.9,0.00020712,2]
[387338687,1758696650273,-494.47600783,0.00020712,2]
[387338689,1758696650282,-542.57,0.00020712,2]
[387338691,1758696650294,-480.0,0.00020712,2]
[387338694,1758696650304,-480.0,0.00020712,2]
[387338696,1758696650314,-480.0,0.00020712,2]
[387338698,1758696650324,-480.0,0.00020712,2]
[387338700,1758696650333,-480.0,0.00020712,2]
[387338702,1758696650342,-1876.45,0.00020712,2]
[387338704,1758696650352,-480.0,0.00020712,2]
[387338706,1758696650361,-480.0,0.00020712,2]
[387338708,1758696650371,-912.57,0.00020712,2]
[387338710,1758696650380,-505.27,0.00020712,2]
[387338712,1758696650390,-480.0,0.00020712,2]
[387338714,1758696650399,-1061.15,0.00020712,2]
[387338716,1758696650408,-480.0,0.00020712,2]
[387338718,1758696650418,-480.0,0.00020712,2]
[387338720,1758696650427,-480.0,0.00020712,2]
[387338722,1758696650436,-433.35310106,0.00020712,2]
[387338724,1758696650446,-500.0,0.00020713,2]
[387338726,1758696650456,-480.0,0.00020713,2]
[387338728,1758696650466,-480.0,0.00020713,2]
[387338730,1758696650477,-480.0,0.00020713,2]
[387338732,1758696650486,-480.0,0.00020713,2]
[387338734,1758696650495,-153.245242,0.00020713,2]
[387338736,1758696650504,-480.0,0.00020713,2]
[387338738,1758696650513,-480.0,0.00020713,2]
[387338740,1758696650522,-480.0,0.00020713,2]
[387338742,1758696650531,-585.93,0.00020713,2]
[387338744,1758696650541,-480.0,0.00020713,2]
[387338746,1758696650550,-480.0,0.00020713,2]
[387338748,1758696650559,-480.0,0.00020713,2]
[387338750,1758696650569,-480.0,0.00020713,2]
[387338752,1758696650578,-480.0,0.00020713,2]
[387338754,1758696650587,-151.0,0.00020713,7]
[387338756,1758696650597,-151.0,0.00020713,7]
[387338758,1758696650606,-151.0,0.00020713,7]
[387338760,1758696650615,-151.0,0.00020713,7]
[387338762,1758696650624,-151.0,0.00020713,7]
[387338764,1758696650634,-151.0,0.00020713,7]
[387338766,1758696650643,-151.0,0.00020713,7]
[387338768,1758696650653,-151.0,0.00020713,7]
[387338770,1758696650662,-151.0,0.00020713,7]
[387338772,1758696650671,-272.944367,0.00020713,7]
[387338774,1758696650681,-262.14023498,0.00020713,2]
[387338776,1758696650690,-522.73,0.00020713,2]
[387338778,1758696650700,-480.0,0.00020713,2]
[387338780,1758696650709,-480.0,0.00020713,2]
[387338782,1758696650719,-480.0,0.00020713,2]
[387338784,1758696650729,-3074.73,0.00020713,2]
[387338786,1758696650738,-480.0,0.00020713,2]
[387338788,1758696650748,-601.73,0.00020713,2]
[387338790,1758696650759,-480.0,0.00020713,2]
[387338792,1758696650768,-485.63737398,0.00020714,2]
[387338794,1758696650778,-480.0,0.00020714,2]
[387338796,1758696650787,-480.0,0.00020714,2]
[387338799,1758696650797,-480.0,0.00020714,2]
[387338801,1758696650806,-682.32,0.00020714,2]
[387338803,1758696650816,-1454.35,0.00020714,2]
[387338805,1758696650825,-344.90027773,0.00020714,2]
[387338807,1758696650835,-151.0,0.00020714,2]
[387338809,1758696650844,-176.567872,0.00020714,2]
[387338810,1758696650854,-480.0,0.00020714,2]
[387338812,1758696650863,-187.18132043,0.00020721,2]
[387338815,1758696650873,-1500.0,0.00020768,2]
[387338816,1758696650882,-1504.74586995,0.00020768,2]
[387338818,1758696650892,-1500.0,0.00020768,2]
[387338820,1758696650902,-502.30335504,0.00020773,2]
[387338822,1758696650911,-500.98096882,0.00020773,2]
[387338824,1758696650920,-500.0,0.00020773,2]
[387338826,1758696650929,-500.0,0.00020773,2]
[387338828,1758696650938,-502.75021354,0.00020773,2]
[387338830,1758696650947,-500.0,0.00020773,2]
[387338832,1758696650957,-500.0,0.00020773,2]
[387338834,1758696650967,-501.86614559,0.00020773,2]
[387338836,1758696650977,-501.24338984,0.00020773,2]
[387338838,1758696650987,-160.0,0.00020804,2]
[387338840,1758696650996,-500.0,0.00020967,2]
[387338842,1758696651005,-502.24535854,0.00020968,2]
[387338844,1758696651015,-505.37081843,0.00020968,2]
[387338846,1758696651024,-1500.0,0.00020968,2]
[387338848,1758696651034,-500.0,0.00020968,2]
[387338850,1758696651043,-504.34145579,0.00020968,2]
[387338852,1758696651052,-502.69098774,0.00020968,2]
[387338854,1758696651061,-1739.1866933,0.00020972,2]
[387338856,1758696651070,-480.0,0.00020984,2]
[387338858,1758696651079,-480.0,0.00020984,2]
[387338860,1758696651088,-2742.89,0.00020985,2]
[387338862,1758696651097,-480.0,0.00020985,2]
[387338864,1758696651107,-537.66,0.00020985,2]
[387338866,1758696651116,-842.14,0.00020985,2]
[387338868,1758696651126,-174.52087303,0.00020985,2]
[387338870,1758696651135,-480.0,0.00020985,2]
[387338872,1758696651145,-480.0,0.00020985,2]
[387338874,1758696651154,-480.0,0.00020985,2]
[387338876,1758696651164,-339.4645147,0.00020985,2]
[387338878,1758696651173,-480.0,0.00020985,2]
[387338880,1758696651182,-1655.49,0.00020985,2]
[387338882,1758696651191,-480.0,0.00020985,2]
[387338884,1758696651201,-1257.41,0.00020986,2]
[387338886,1758696651212,-480.0,0.00020986,2]
[387338888,1758696651223,-480.0,0.00020986,2]
[387338890,1758696651232,-509.9,0.00020986,2]
[387338892,1758696651241,-542.57,0.00020986,2]
[387338894,1758696651250,-480.0,0.00020986,2]
[387338896,1758696651260,-480.0,0.00020986,2]
[387338898,1758696651269,-399.48014932,0.00020986,2]
[387338900,1758696651278,-480.0,0.00020986,2]
[387338901,1758696651289,-1876.45,0.00020986,2]
[387338903,1758696651298,-150.75674884,0.00020986,2]
[387338905,1758696651307,-151.0,0.00020986,2]
[387338907,1758696651316,-480.0,0.00020986,2]
[387338909,1758696651325,-912.57,0.00020986,2]
[387338911,1758696651334,-505.27,0.00020986,2]
[387338913,1758696651343,-262.58,0.00020986,2]
[387338915,1758696651352,-1061.15,0.00020986,2]
[387338917,1758696651362,-480.0,0.00020986,2]
[387338919,1758696651371,-480.0,0.00020986,2]
[387338921,1758696651380,-500.0,0.00020987,2]
[387338923,1758696651390,-480.0,0.00020987,2]
[387338925,1758696651399,-480.0,0.00020987,2]
[387338927,1758696651408,-480.0,0.00020987,2]
[387338936,1758696651474,-490.37993273,0.00020987,2]
[387338938,1758696651483,-480.0,0.00020987,2]
[387338940,1758696651493,-480.0,0.00020987,2]
[387338942,1758696651502,-480.0,0.00020987,2]
[387338944,1758696651512,-585.93,0.00020987,2]
[387338946,1758696651521,-480.0,0.00020987,2]
[387338947,1758696651530,-495.70456173,0.00020987,2]
[387338950,1758696651539,-480.0,0.00020987,2]
[387338951,1758696651548,-480.0,0.00020987,2]
[387338953,1758696651558,-319.4599904,0.00020987,2]
[387338955,1758696651567,-522.73,0.00020987,2]
[387338957,1758696651576,-480.0,0.00020987,2]
[387338959,1758696651586,-480.0,0.00020987,2]
[387338962,1758696651595,-3074.73,0.00020987,2]
[387338964,1758696651605,-601.73,0.00020987,2]
[387338966,1758696651614,-480.0,0.00020987,2]
[387338968,1758696651623,-480.0,0.00020988,2]
[387338969,1758696651632,-480.0,0.00020988,2]
[387338971,1758696651642,-480.0,0.00020988,2]
[387338974,1758696651652,-682.32,0.00020988,2]
[387338975,1758696651661,-1454.35,0.00020988,2]
[387338977,1758696651671,-480.0,0.00020988,2]
[387338979,1758696651680,-2036.74292582,0.00021016,2]
[387338981,1758696651690,-1028.30750259,0.00021016,2]
[387338983,1758696651699,-2000.0,0.00021016,2]
[387338985,1758696651709,-2000.0,0.00021016,2]
[387338987,1758696651721,-284.0,0.00021065,2]
[387338989,1758696651730,-420.0,0.00021065,2]
[387338991,1758696651740,-300.0,0.00021167,2]
[387338993,1758696651749,-480.0,0.00021258,2]
[387338996,1758696651759,-480.0,0.00021258,2]
[387338997,1758696651772,-2742.89,0.00021259,2]
[387338999,1758696651782,-480.0,0.00021259,2]
[387339001,1758696651792,-537.66,0.00021259,2]
[387339003,1758696651802,-842.14,0.00021259,2]
[387339005,1758696651815,-480.0,0.00021259,2]
[387339007,1758696651828,-480.0,0.00021259,2]
[387339009,1758696651837,-480.0,0.00021259,2]
[387339011,1758696651847,-480.0,0.00021259,2]
[387339013,1758696651856,-1655.49,0.00021259,2]
[387339015,1758696651865,-480.0,0.00021259,2]
[387339017,1758696651875,-1257.41,0.0002126,2]
[387339019,1758696651884,-480.0,0.0002126,2]
[387339021,1758696651894,-480.0,0.0002126,2]
[387339023,1758696651904,-509.9,0.0002126,2]
[387339025,1758696651913,-542.57,0.0002126,2]
[387339027,1758696651923,-480.0,0.0002126,2]
[387339029,1758696651932,-480.0,0.0002126,2]
[387339031,1758696651942,-480.0,0.0002126,2]
[387339033,1758696651951,-1876.45,0.0002126,2]
[387339035,1758696651960,-480.0,0.0002126,2]
[387339037,1758696651970,-912.57,0.0002126,2]
[387339039,1758696651979,-505.27,0.0002126,2]
[387339041,1758696651988,-1061.15,0.0002126,2]
[387339043,1758696651997,-480.0,0.0002126,2]
[387339045,1758696652007,-480.0,0.0002126,2]
[387339047,1758696652016,-500.0,0.00021261,2]
[387339049,1758696652025,-480.0,0.00021261,2]
[387339051,1758696652034,-480.0,0.00021261,2]
[387339053,1758696652044,-480.0,0.00021261,2]
[387339055,1758696652053,-480.0,0.00021261,2]
[387339057,1758696652062,-246.00716045,0.00021261,2]
[387339059,1758696652071,-480.0,0.00021261,2]
[387339061,1758696652080,-585.93,0.00021261,2]
[387339063,1758696652090,-480.0,0.00021261,2]
[387339065,1758696652099,-480.0,0.00021261,2]
[387339067,1758696652108,-480.0,0.00021261,2]
[387339069,1758696652118,-522.73,0.00021261,2]
[387339071,1758696652127,-480.0,0.00021261,2]
[387339073,1758696652137,-480.0,0.00021261,2]
[387339075,1758696652148,-3074.73,0.00021261,2]
[387339077,1758696652157,-601.73,0.00021261,2]
[387339079,1758696652167,-480.0,0.00021261,2]
[387339081,1758696652177,-480.0,0.00021262,2]
[387339083,1758696652186,-480.0,0.00021262,2]
[387339085,1758696652196,-682.32,0.00021262,2]
[387339087,1758696652207,-1454.35,0.00021262,2]
[387339089,1758696652219,-480.0,0.00021262,2]
[387339091,1758696652228,-155.0,0.00021275,2]
[387339093,1758696652238,-1514.1776107,0.00021316,2]
[387339095,1758696652248,-283.70442496,0.00021316,2]
[387339097,1758696652257,-617.12592652,0.00021321,2]
[387339099,1758696652266,-1000.0,0.00021321,2]
[387339101,1758696652275,-1000.0,0.00021321,2]
[387339103,1758696652286,-1000.0,0.00021321,2]
[387339105,1758696652296,-260.0,0.00021352,2]
[387339107,1758696652305,-350.0,0.00021371,2]
[387339109,1758696652314,-350.0,0.00021371,2]
[387339111,1758696652323,-350.0,0.00021371,2]
[387339113,1758696652332,-350.0,0.00021371,2]
[387339115,1758696652341,-350.0,0.00021371,2]
[387339117,1758696652350,-350.0,0.00021371,2]
[387339119,1758696652360,-350.0,0.00021371,2]
[387339121,1758696652369,-354.62480434,0.00021371,2]
[387339123,1758696652378,-500.0,0.00021418,2]
[387339125,1758696652387,-500.0,0.0002145,2]
[387339127,1758696652398,-500.0,0.0002145,2]
[387339129,1758696652407,-500.7962552,0.0002145,2]
[387339131,1758696652416,-500.0,0.0002145,2]
[387339133,1758696652425,-501.56478208,0.0002145,2]
[387339135,1758696652434,-593.38250071,0.0002145,2]
[387339137,1758696652443,-500.0,0.0002145,2]
[387339139,1758696652453,-326.22345741,0.0002145,2]
[387339141,1758696652462,-529.23636076,0.0002145,2]
[387339143,1758696652472,-1001.0842112,0.00021515,2]
[387339145,1758696652481,-1503.92049297,0.00021516,2]
[387339146,1758696652490,-480.0,0.00021532,2]
[387339147,1758696652499,-480.0,0.00021532,2]
[387339148,1758696652508,-2742.89,0.00021533,2]
[387339149,1758696652517,-375.07,0.00021533,2]
[387339150,1758696652526,-537.66,0.00021533,2]
[387339151,1758696652535,-842.14,0.00021533,2]
[387339152,1758696652600,-480.0,0.00021533,2]
[387339153,1758696652610,-480.0,0.00021533,2]
[387339154,1758696652619,-480.0,0.00021533,2]
[387339155,1758696652629,-480.0,0.00021533,2]
[387339156,1758696652638,-1655.49,0.00021533,2]
[387339157,1758696652648,-480.0,0.00021533,2]
[387339158,1758696652657,-1257.41,0.00021534,2]
[387339159,1758696652666,-480.0,0.00021534,2]
[387339160,1758696652677,-480.0,0.00021534,2]
[387339161,1758696652686,-509.9,0.00021534,2]
[387339162,1758696652695,-542.57,0.00021534,2]
[387339163,1758696652705,-480.0,0.00021534,2]